fUSD/lending_fUSD_20260513
["ID","MTS","AMOUNT","RATE_DAILY","PERIOD"]
[422168428,1778644232000,-500.0,0.00013698,2]
[422168431,1778644232000,-500.0,0.00013698,2]
[422168434,1778644232000,-500.0,0.00013698,2]
[422168416,1778644232000,-162.05932772,0.00013698,2]
[422168433,1778644232000,-500.0,0.00013698,2]
[422168437,1778644232000,-500.0,0.00013698,2]
[422168429,1778644232000,-500.0,0.00013698,2]
[422168414,1778644232000,-234.66857943,0.00013698,2]
[422168407,1778644232000,-250.0,0.00013574,2]
[422168411,1778644232000,-500.0,0.00013698,2]
[422168435,1778644232000,-500.0,0.00013698,2]
[422168396,1778644232000,-589.81146581,0.00012492,2]
[422168398,1778644232000,-6630.39184725,0.00012592,2]
[422168400,1778644232000,-906.42945608,0.00012592,2]
[422168401,1778644232000,-16841.79353834,0.00012592,2]
[422168397,1778644232000,-1200.0,0.00012591,2]
[422168399,1778644232000,-260.03248731,0.00012592,2]
[422168395,1778644232000,-450.71712781,0.00012492,2]
[422168402,1778644232000,-437.436765,0.00012592,2]
[422168404,1778644232000,-214.91342137,0.00012778,2]
[422168403,1778644232000,-344903.88360602,0.00012592,2]
[422168409,1778644232000,-500.0,0.00013698,2]
[422168410,1778644232000,-500.0,0.00013698,2]
[422168412,1778644232000,-500.0,0.00013698,2]
[422168405,1778644232000,-160.0,0.00012778,2]
[422168406,1778644232000,-152.0,0.00012799,2]
[422168413,1778644232000,-500.0,0.00013698,2]
[422168408,1778644232000,-255.0,0.00013686,2]
[422168436,1778644232000,-500.0,0.00013698,2]
[422168464,1778644232000,-1195.48,0.00014504,2]
[422168442,1778644232000,-500.0,0.00013698,2]
[422168461,1778644232000,-300.0,0.00013851,2]
[422168462,1778644232000,-299.99,0.00014504,2]
[422168460,1778644232000,-300.0,0.00013851,2]
[422168465,1778644232000,-433.0,0.00014883,2]
[422168466,1778644232000,-9999.99,0.00014883,2]
[422168477,1778644232000,-1162.0,0.000164,2]
[422168463,1778644232000,-999.99,0.00014504,2]
[422168469,1778644232000,-2351.0,0.00015235,2]
[422168470,1778644232000,-1040.52859357,0.00015626,2]
[422168468,1778644232000,-6111.27,0.00014883,2]
[422168472,1778644232000,-351.04386864,0.00015886,2]
[422168471,1778644232000,-3083.8664249,0.00015635,2]
[422168474,1778644232000,-150.0,0.00016396,2]
[422168475,1778644232000,-150.0,0.00016396,2]
[422168478,1778644232000,-200.0,0.00016545,2]
[422168476,1778644232000,-186.35213856,0.00016396,2]
[422168440,1778644232000,-500.0,0.00013698,2]
[422168467,1778644232000,-150.99,0.00014883,2]
[422168459,1778644232000,-300.0,0.00013851,2]
[422168473,1778644232000,-736.0,0.00016167,2]
[422168453,1778644232000,-500.0,0.00013698,2]
[422168458,1778644232000,-1680.0,0.0001385,2]
[422168439,1778644232000,-500.0,0.00013698,2]
[422168438,1778644232000,-500.0,0.00013698,2]
[422168441,1778644232000,-500.0,0.00013698,2]
[422168444,1778644232000,-500.0,0.00013698,2]
[422168446,1778644232000,-500.0,0.00013698,2]
[422168451,1778644232000,-500.0,0.00013698,2]
[422168452,1778644232000,-500.0,0.00013698,2]
[422168443,1778644232000,-502.56578458,0.00013698,2]
[422168445,1778644232000,-500.0,0.00013698,2]
[422168454,1778644232000,-500.0,0.00013698,2]
[422168449,1778644232000,-233.99417586,0.00013698,2]
[422168450,1778644232000,-500.0,0.00013698,2]
[422168455,1778644232000,-500.0,0.00013698,2]
[422168457,1778644232000,-163.36,0.0001374,2]
[422168456,1778644232000,-500.0,0.00013698,2]
[422168447,1778644232000,-500.0,0.00013698,2]
[422168448,1778644232000,-500.0,0.00013698,2]
[422168523,1778644233000,-500.0,0.00017595,2]
[422168524,1778644233000,-500.0,0.00017595,2]
[422168512,1778644233000,-500.0,0.00017125,2]
[422168510,1778644233000,-200.0,0.00016895,2]
[422168519,1778644233000,-500.0,0.00017595,2]
[422168517,1778644233000,-505.20982406,0.00017595,2]
[422168516,1778644233000,-1252.0,0.00017577,2]
[422168511,1778644233000,-165.87,0.00017046,2]
[422168508,1778644233000,-2480.05,0.00016785,2]
[422168530,1778644233000,-5089.69,0.00017728,2]
[422168509,1778644233000,-4128.83,0.000168,2]
[422168518,1778644233000,-500.0,0.00017595,2]
[422168527,1778644233000,-2480.05,0.00017624,2]
[422168534,1778644233000,-170.08,0.00018026,2]
[422168520,1778644233000,-500.0,0.00017595,2]
[422168522,1778644233000,-500.0,0.00017595,2]
[422168532,1778644233000,-165.87,0.00017984,2]
[422168529,1778644233000,-29999.99,0.00017728,2]
[422168531,1778644233000,-1066.44,0.000179,2]
[422168521,1778644233000,-799.47,0.00017595,2]
[422168528,1778644233000,-893.69,0.00017676,2]
[422168533,1778644233000,-199.97476618,0.00018,2]
[422168536,1778644233000,-199.97476618,0.000182,2]
[422168535,1778644233000,-2480.05,0.00018044,2]
[422168537,1778644233000,-199.97476618,0.000184,2]
[422168538,1778644233000,-704.0,0.00018435,2]
[422168507,1778644233000,-3292.0,0.00016759,2]
[422168526,1778644233000,-500.0,0.00017595,2]
[422168515,1778644233000,-2000.0,0.00017417,2]
[422168484,1778644233000,-294.14,0.00016612,2]
[422168513,1778644233000,-2480.05,0.00017205,2]
[422168480,1778644233000,-500.0,0.00016612,2]
[422168479,1778644233000,-4059.02,0.00016569,2]
[422168487,1778644233000,-151.0,0.0001667,2]
[422168481,1778644233000,-500.0,0.00016612,2]
[422168486,1778644233000,-151.0,0.0001667,2]
[422168482,1778644233000,-244.79909942,0.00016612,2]
[422168483,1778644233000,-500.0,0.00016612,2]
[422168490,1778644233000,-151.0,0.0001667,2]
[422168485,1778644233000,-151.0,0.0001667,2]
[422168488,1778644233000,-151.0,0.0001667,2]
[422168540,1778644233000,-199.97476618,0.000185,2]
[422168489,1778644233000,-151.0,0.0001667,2]
[422168492,1778644233000,-151.0,0.0001667,2]
[422168514,1778644233000,-866.79698873,0.00017293,2]
[422168491,1778644233000,-151.0,0.0001667,2]
[422168495,1778644233000,-151.0,0.0001667,2]
[422168494,1778644233000,-151.0,0.0001667,2]
[422168497,1778644233000,-151.0,0.0001667,2]
[422168499,1778644233000,-151.0,0.0001667,2]
[422168501,1778644233000,-151.0,0.0001667,2]
[422168496,1778644233000,-151.0,0.0001667,2]
[422168498,1778644233000,-151.0,0.0001667,2]
[422168503,1778644233000,-151.0,0.0001667,2]
[422168500,1778644233000,-151.0,0.0001667,2]
[422168502,1778644233000,-151.0,0.0001667,2]
[422168505,1778644233000,-184.57,0.00016712,2]
[422168504,1778644233000,-151.0,0.0001667,2]
[422168506,1778644233000,-500.0,0.00016715,2]
[422168493,1778644233000,-151.0,0.0001667,2]
[422168539,1778644233000,-2480.05,0.00018463,2]
[422168525,1778644233000,-500.0,0.00017595,2]
[422168543,1778644233000,-500.0,0.00018531,2]
[422168576,1778644233000,-500.0,0.00018531,2]
[422168570,1778644233000,-500.0,0.00018531,2]
[422168571,1778644233000,-500.0,0.00018531,2]
[422168573,1778644233000,-500.0,0.00018531,2]
[422168579,1778644233000,-500.0,0.00018531,2]
[422168580,1778644233000,-500.0,0.00018531,2]
[422168577,1778644233000,-500.0,0.00018531,2]
[422168591,1778644233000,-500.0,0.00018531,2]
[422168582,1778644233000,-500.0,0.00018531,2]
[422168584,1778644233000,-500.0,0.00018531,2]
[422168588,1778644233000,-500.0,0.00018531,2]
[422168586,1778644233000,-500.0,0.00018531,2]
[422168587,1778644233000,-412.34340774,0.00018531,2]
[422168578,1778644233000,-500.0,0.00018531,2]
[422168583,1778644233000,-500.0,0.00018531,2]
[422168589,1778644233000,-500.0,0.00018531,2]
[422168590,1778644233000,-500.0,0.00018531,2]
[422168592,1778644233000,-500.0,0.00018531,2]
[422168593,1778644233000,-500.0,0.00018531,2]
[422168594,1778644233000,-500.0,0.00018531,2]
[422168598,1778644233000,-500.0,0.00018531,2]
[422168596,1778644233000,-500.0,0.00018531,2]
[422168597,1778644233000,-500.0,0.00018531,2]
[422168599,1778644233000,-500.0,0.00018531,2]
[422168595,1778644233000,-500.0,0.00018531,2]
[422168541,1778644233000,-170.08,0.000185,2]
[422168600,1778644233000,-500.0,0.00018531,2]
[422168602,1778644233000,-500.0,0.00018531,2]
[422168585,1778644233000,-500.0,0.00018531,2]
[422168574,1778644233000,-500.0,0.00018531,2]
[422168601,1778644233000,-500.0,0.00018531,2]
[422168572,1778644233000,-500.0,0.00018531,2]
[422168581,1778644233000,-500.0,0.00018531,2]
[422168542,1778644233000,-500.0,0.00018531,2]
[422168546,1778644233000,-500.0,0.00018531,2]
[422168553,1778644233000,-500.0,0.00018531,2]
[422168545,1778644233000,-500.0,0.00018531,2]
[422168557,1778644233000,-500.0,0.00018531,2]
[422168552,1778644233000,-500.0,0.00018531,2]
[422168556,1778644233000,-500.0,0.00018531,2]
[422168550,1778644233000,-500.0,0.00018531,2]
[422168547,1778644233000,-500.0,0.00018531,2]
[422168548,1778644233000,-500.0,0.00018531,2]
[422168549,1778644233000,-500.0,0.00018531,2]
[422168554,1778644233000,-500.0,0.00018531,2]
[422168555,1778644233000,-500.0,0.00018531,2]
[422168544,1778644233000,-500.0,0.00018531,2]
[422168559,1778644233000,-500.0,0.00018531,2]
[422168551,1778644233000,-500.0,0.00018531,2]
[422168575,1778644233000,-500.0,0.00018531,2]
[422168569,1778644233000,-500.0,0.00018531,2]
[422168567,1778644233000,-500.0,0.00018531,2]
[422168566,1778644233000,-500.0,0.00018531,2]
[422168561,1778644233000,-500.0,0.00018531,2]
[422168563,1778644233000,-500.0,0.00018531,2]
[422168565,1778644233000,-500.0,0.00018531,2]
[422168564,1778644233000,-500.0,0.00018531,2]
[422168562,1778644233000,-500.0,0.00018531,2]
[422168560,1778644233000,-500.0,0.00018531,2]
[422168558,1778644233000,-500.0,0.00018531,2]
[422168568,1778644233000,-500.0,0.00018531,2]
[422168639,1778644234000,-151.0,0.0002,2]
[422168645,1778644234000,-155.31,0.00020056,2]
[422168648,1778644234000,-388.0991226,0.000205,20]
[422168649,1778644234000,-347.20154257,0.000205,20]
[422168632,1778644234000,-2865.37106489,0.000199,2]
[422168630,1778644234000,-2000.0,0.00019594,2]
[422168633,1778644234000,-2865.37106489,0.000199,2]
[422168631,1778644234000,-165.87,0.00019859,2]
[422168636,1778644234000,-157.0,0.0002,2]
[422168634,1778644234000,-2865.37106489,0.000199,2]
[422168640,1778644234000,-152.0,0.0002,2]
[422168642,1778644234000,-164.23988985,0.0002,2]
[422168651,1778644234000,-4914.07,0.00020548,2]
[422168647,1778644234000,-373.76736836,0.000205,20]
[422168646,1778644234000,-224.39859962,0.000205,20]
[422168643,1778644234000,-157.0,0.0002,2]
[422168650,1778644234000,-4914.07,0.00020548,2]
[422168644,1778644234000,-386.0,0.0002,2]
[422168652,1778644234000,-4914.07,0.00020548,2]
[422168656,1778644234000,-4914.07,0.00020548,2]
[422168654,1778644234000,-4914.07,0.00020548,2]
[422168655,1778644234000,-4914.07,0.00020548,2]
[422168657,1778644234000,-4914.07,0.00020548,2]
[422168637,1778644234000,-154.0,0.0002,2]
[422168658,1778644234000,-4914.07,0.00020548,2]
[422168641,1778644234000,-2557.91,0.0002,10]
[422168638,1778644234000,-371.0,0.0002,2]
[422168617,1778644234000,-170.08,0.00018975,2]
[422168629,1778644234000,-170.08,0.00019449,2]
[422168653,1778644234000,-4914.07,0.00020548,2]
[422168603,1778644234000,-500.0,0.00018531,2]
[422168605,1778644234000,-500.0,0.00018531,2]
[422168604,1778644234000,-500.0,0.00018531,2]
[422168607,1778644234000,-500.0,0.00018531,2]
[422168615,1778644234000,-165.87,0.00018921,2]
[422168606,1778644234000,-530.41144694,0.00018531,2]
[422168609,1778644234000,-500.0,0.00018531,2]
[422168613,1778644234000,-1040.52859357,0.0001876,2]
[422168608,1778644234000,-500.0,0.00018531,2]
[422168614,1778644234000,-3083.8664249,0.00018778,2]
[422168610,1778644234000,-500.0,0.00018531,2]
[422168635,1778644234000,-170.08,0.00019923,2]
[422168611,1778644234000,-294.14,0.00018689,2]
[422168616,1778644234000,-182.98,0.00018951,2]
[422168618,1778644234000,-1104.39,0.00018975,2]
[422168621,1778644234000,-500.0,0.00019178,2]
[422168619,1778644234000,-1246.0,0.00019113,2]
[422168620,1778644234000,-3000.0,0.00019178,2]
[422168622,1778644234000,-500.0,0.00019178,2]
[422168624,1778644234000,-500.0,0.00019178,2]
[422168626,1778644234000,-500.0,0.00019178,2]
[422168625,1778644234000,-500.0,0.00019178,2]
[422168623,1778644234000,-500.0,0.00019178,2]
[422168627,1778644234000,-500.0,0.00019178,2]
[422168628,1778644234000,-500.0,0.00019178,2]
[422168612,1778644234000,-199.97476618,0.000187,2]
[422168660,1778644234000,-4914.07,0.00020548,2]
[422168717,1778644234000,-1358.571,0.00022351,2]
[422168673,1778644234000,-157.0,0.00021,2]
[422168688,1778644234000,-270.488729,0.00021479,2]
[422168696,1778644234000,-297.99003,0.00021903,2]
[422168692,1778644234000,-500.0,0.0002177,2]
[422168697,1778644234000,-500.0,0.00021917,2]
[422168693,1778644234000,-500.0,0.0002177,2]
[422168691,1778644234000,-500.0,0.0002177,2]
[422168698,1778644234000,-500.0,0.00021917,2]
[422168699,1778644234000,-500.0,0.00021917,2]
[422168700,1778644234000,-799.47,0.00021917,2]
[422168704,1778644234000,-500.0,0.00021917,2]
[422168701,1778644234000,-500.0,0.00021917,2]
[422168706,1778644234000,-500.0,0.00021917,2]
[422168702,1778644234000,-500.0,0.00021917,2]
[422168703,1778644234000,-500.0,0.00021917,2]
[422168705,1778644234000,-500.0,0.00021917,2]
[422168709,1778644234000,-157.0,0.00022,2]
[422168708,1778644234000,-3083.8664249,0.00021921,2]
[422168711,1778644234000,-371.0,0.00022,2]
[422168710,1778644234000,-154.0,0.00022,2]
[422168716,1778644234000,-625.0,0.00022351,2]
[422168715,1778644234000,-866.79698873,0.00022095,2]
[422168713,1778644234000,-164.09572338,0.00022,2]
[422168714,1778644234000,-386.0,0.00022,2]
[422168712,1778644234000,-151.0,0.00022,2]
[422168659,1778644234000,-4914.07,0.00020548,2]
[422168694,1778644234000,-2000.0,0.00021771,2]
[422168687,1778644234000,-510.42492008,0.00021364,2]
[422168707,1778644234000,-5000.0,0.00021918,2]
[422168686,1778644234000,-6790.2,0.00021273,2]
[422168690,1778644234000,-4848.9231985,0.00021746,2]
[422168676,1778644234000,-151.0,0.00021,2]
[422168667,1778644234000,-4914.07,0.00020548,2]
[422168666,1778644234000,-4914.07,0.00020548,2]
[422168669,1778644234000,-4914.07,0.00020548,2]
[422168665,1778644234000,-4914.07,0.00020548,2]
[422168672,1778644234000,-596.6755982,0.00020853,2]
[422168684,1778644234000,-347.6,0.00021273,2]
[422168664,1778644234000,-4914.07,0.00020548,2]
[422168675,1778644234000,-371.0,0.00021,2]
[422168674,1778644234000,-154.0,0.00021,2]
[422168668,1778644234000,-4914.07,0.00020548,2]
[422168671,1778644234000,-294.14,0.00020766,2]
[422168662,1778644234000,-4914.07,0.00020548,2]
[422168683,1778644234000,-1421.29,0.00021273,2]
[422168678,1778644234000,-170.9741284,0.00021,2]
[422168695,1778644234000,-1040.52859357,0.00021895,2]
[422168681,1778644234000,-1278.959,0.0002105,2]
[422168677,1778644234000,-152.0,0.00021,2]
[422168663,1778644234000,-4914.07,0.00020548,2]
[422168661,1778644234000,-4914.07,0.00020548,2]
[422168689,1778644234000,-155.31,0.00021489,2]
[422168685,1778644234000,-1841.68,0.00021273,2]
[422168680,1778644234000,-400.44139961,0.00021024,22]
[422168682,1778644234000,-158.60995306,0.00021082,2]
[422168679,1778644234000,-386.0,0.00021,2]
[422168670,1778644234000,-500.0,0.00020742,2]
[422168776,1778644235000,-1040.52859357,0.00025029,2]
[422168755,1778644235000,-496.38,0.00024617,2]
[422168754,1778644235000,-496.38,0.00024563,2]
[422168749,1778644235000,-386.0,0.00024,2]
[422168756,1778644235000,-1000.0,0.00024658,2]
[422168750,1778644235000,-155.31,0.00024354,2]
[422168751,1778644235000,-507.0,0.00024397,2]
[422168752,1778644235000,-496.38,0.0002451,2]
[422168753,1778644235000,-309.0,0.00024533,2]
[422168759,1778644235000,-183.08,0.00024658,2]
[422168748,1778644235000,-151.0,0.00024,2]
[422168762,1778644235000,-496.38,0.00024777,2]
[422168768,1778644235000,-496.38,0.00024936,2]
[422168764,1778644235000,-183.08,0.00024802,7]
[422168761,1778644235000,-496.38,0.00024723,2]
[422168763,1778644235000,-183.12,0.00024802,7]
[422168765,1778644235000,-496.38,0.0002483,2]
[422168769,1778644235000,-183.12,0.00024946,30]
[422168767,1778644235000,-496.38,0.00024883,2]
[422168766,1778644235000,-11463.81,0.0002486,7]
[422168773,1778644235000,-387.09158357,0.00025,2]
[422168771,1778644235000,-496.38,0.0002499,2]
[422168775,1778644235000,-392.48509992,0.00025,2]
[422168772,1778644235000,-4837.45647603,0.00025,3]
[422168747,1778644235000,-371.0,0.00024,2]
[422168760,1778644235000,-496.38,0.0002467,2]
[422168746,1778644235000,-172.22749649,0.00024,2]
[422168719,1778644235000,-3541.0,0.00022351,2]
[422168745,1778644235000,-2000.0,0.00023948,2]
[422168718,1778644235000,-926.0,0.00022351,2]
[422168720,1778644235000,-151.154,0.00022351,2]
[422168721,1778644235000,-1269.0,0.00022351,2]
[422168723,1778644235000,-150.0,0.00022351,2]
[422168724,1778644235000,-219.0,0.00022351,2]
[422168722,1778644235000,-1226.944,0.00022351,2]
[422168725,1778644235000,-200.0,0.00022351,2]
[422168729,1778644235000,-150.0,0.00022351,2]
[422168727,1778644235000,-150.566,0.00022351,2]
[422168728,1778644235000,-150.728,0.00022351,2]
[422168726,1778644235000,-934.132,0.00022351,2]
[422168730,1778644235000,-418.677,0.00022351,2]
[422168757,1778644235000,-187.15,0.00024658,2]
[422168731,1778644235000,-179.4,0.00022399,2]
[422168733,1778644235000,-1278.95,0.000228,30]
[422168735,1778644235000,-155.31,0.00022922,2]
[422168736,1778644235000,-151.0,0.00022986,7]
[422168737,1778644235000,-166.30535348,0.00023,2]
[422168738,1778644235000,-154.0,0.00023,2]
[422168743,1778644235000,-182.98,0.00023389,2]
[422168741,1778644235000,-386.0,0.00023,2]
[422168734,1778644235000,-294.14,0.00022842,2]
[422168744,1778644235000,-247.4,0.00023941,2]
[422168740,1778644235000,-151.0,0.00023,2]
[422168742,1778644235000,-11463.81,0.0002322,2]
[422168739,1778644235000,-371.0,0.00023,2]
[422168732,1778644235000,-2076.65,0.00022466,2]
[422168777,1778644235000,-496.38,0.00025043,2]
[422168758,1778644235000,-183.12,0.00024658,2]
[422168774,1778644235000,-155.82595511,0.00025,2]
[422168808,1778644235000,-450.0,0.00025776,2]
[422168805,1778644235000,-496.38,0.00025629,2]
[422168807,1778644235000,-496.44946358,0.00025736,2]
[422168810,1778644235000,-450.0,0.00025776,2]
[422168813,1778644235000,-450.0,0.00025776,2]
[422168806,1778644235000,-496.38,0.00025682,2]
[422168816,1778644235000,-542.0,0.00025776,2]
[422168826,1778644235000,-300.0,0.00026084,2]
[422168822,1778644235000,-152.56,0.00026068,2]
[422168820,1778644235000,-6790.2,0.00025786,2]
[422168815,1778644235000,-450.0,0.00025776,2]
[422168818,1778644235000,-347.6,0.00025786,2]
[422168814,1778644235000,-450.0,0.00025776,2]
[422168825,1778644235000,-300.0,0.00026084,2]
[422168821,1778644235000,-155.31,0.00025787,2]
[422168823,1778644235000,-300.0,0.00026084,2]
[422168819,1778644235000,-1841.68,0.00025786,2]
[422168828,1778644235000,-300.0,0.00026084,2]
[422168827,1778644235000,-300.0,0.00026084,2]
[422168829,1778644235000,-300.0,0.00026084,2]
[422168830,1778644235000,-300.0,0.00026084,2]
[422168832,1778644235000,-387.03,0.0002609,2]
[422168834,1778644235000,-152.6,0.00026105,7]
[422168833,1778644235000,-152.56,0.00026101,7]
[422168831,1778644235000,-421.0,0.00026084,2]
[422168770,1778644235000,-183.08,0.00024946,30]
[422168817,1778644235000,-1421.29,0.00025786,2]
[422168812,1778644235000,-450.0,0.00025776,2]
[422168824,1778644235000,-300.0,0.00026084,2]
[422168809,1778644235000,-450.0,0.00025776,2]
[422168811,1778644235000,-450.0,0.00025776,2]
[422168789,1778644235000,-926.0,0.00025351,2]
[422168780,1778644235000,-183.08,0.0002509,2]
[422168781,1778644235000,-496.38,0.00025096,2]
[422168779,1778644235000,-183.12,0.0002509,2]
[422168783,1778644235000,-496.38,0.00025203,2]
[422168787,1778644235000,-625.0,0.00025351,2]
[422168784,1778644235000,-183.08,0.00025234,7]
[422168782,1778644235000,-496.38,0.0002515,2]
[422168786,1778644235000,-496.38,0.00025309,2]
[422168785,1778644235000,-496.38,0.00025256,2]
[422168788,1778644235000,-1353.0,0.00025351,2]
[422168790,1778644235000,-3541.0,0.00025351,2]
[422168794,1778644235000,-417.0,0.00025351,2]
[422168778,1778644235000,-3083.8664249,0.00025064,2]
[422168800,1778644235000,-666.643,0.00025382,30]
[422168792,1778644235000,-1223.0,0.00025351,2]
[422168791,1778644235000,-1269.0,0.00025351,2]
[422168798,1778644235000,-500.0,0.00025382,30]
[422168801,1778644235000,-496.38,0.00025416,2]
[422168799,1778644235000,-500.0,0.00025382,30]
[422168795,1778644235000,-496.38,0.00025363,2]
[422168796,1778644235000,-507.0,0.00025373,3]
[422168797,1778644235000,-500.0,0.00025382,30]
[422168793,1778644235000,-150.0,0.00025351,2]
[422168802,1778644235000,-496.38,0.00025469,2]
[422168803,1778644235000,-496.38,0.00025523,2]
[422168804,1778644235000,-496.38,0.00025576,2]
[422168872,1778644236000,-152.56,0.00026237,30]
[422168874,1778644236000,-387.03,0.00026243,2]
[422168865,1778644236000,-152.6,0.00026206,7]
[422168888,1778644236000,-152.6,0.00026306,7]
[422168878,1778644236000,-387.03,0.00026268,7]
[422168875,1778644236000,-651.42,0.00026254,2]
[422168869,1778644236000,-651.42,0.00026229,7]
[422168871,1778644236000,-1302.9,0.00026237,7]
[422168870,1778644236000,-1299.85,0.00026231,7]
[422168868,1778644236000,-387.03,0.00026217,7]
[422168876,1778644236000,-1299.85,0.00026256,2]
[422168889,1778644236000,-1302.9,0.00026309,2]
[422168873,1778644236000,-152.6,0.00026239,30]
[422168877,1778644236000,-1302.9,0.00026261,2]
[422168885,1778644236000,-651.42,0.00026303,2]
[422168880,1778644236000,-152.6,0.00026273,2]
[422168879,1778644236000,-152.56,0.0002627,2]
[422168881,1778644236000,-651.42,0.00026278,7]
[422168882,1778644236000,-1299.85,0.0002628,7]
[422168887,1778644236000,-1299.85,0.00026305,2]
[422168886,1778644236000,-152.56,0.00026304,7]
[422168884,1778644236000,-387.03,0.00026294,2]
[422168891,1778644236000,-651.42,0.00026328,2]
[422168901,1778644236000,-387.03,0.0002637,7]
[422168890,1778644236000,-387.03,0.00026319,2]
[422168892,1778644236000,-1299.85,0.00026329,2]
[422168893,1778644236000,-1302.9,0.00026334,2]
[422168883,1778644236000,-1302.9,0.00026285,7]
[422168867,1778644236000,-1302.9,0.00026213,7]
[422168836,1778644236000,-1299.85,0.00026109,2]
[422168862,1778644236000,-387.03,0.00026192,7]
[422168894,1778644236000,-152.56,0.00026338,30]
[422168838,1778644236000,-1302.9,0.00026117,2]
[422168837,1778644236000,-387.03,0.00026115,7]
[422168835,1778644236000,-651.42,0.00026106,2]
[422168839,1778644236000,-150.0,0.00026121,2]
[422168842,1778644236000,-150.0,0.00026121,2]
[422168852,1778644236000,-387.03,0.00026141,2]
[422168845,1778644236000,-651.42,0.0002613,7]
[422168844,1778644236000,-2000.0,0.00026125,2]
[422168851,1778644236000,-1302.9,0.00026141,7]
[422168846,1778644236000,-1299.85,0.00026133,7]
[422168843,1778644236000,-283.0,0.00026121,2]
[422168849,1778644236000,-1554.87211146,0.0002614,2]
[422168866,1778644236000,-1299.85,0.00026207,7]
[422168841,1778644236000,-150.0,0.00026121,2]
[422168848,1778644236000,-152.6,0.00026139,30]
[422168847,1778644236000,-152.56,0.00026135,30]
[422168853,1778644236000,-651.42,0.00026155,2]
[422168864,1778644236000,-651.42,0.00026204,7]
[422168854,1778644236000,-1299.85,0.00026158,2]
[422168855,1778644236000,-1302.9,0.00026165,2]
[422168859,1778644236000,-651.42,0.0002618,2]
[422168863,1778644236000,-152.56,0.00026203,7]
[422168857,1778644236000,-152.56,0.00026169,2]
[422168858,1778644236000,-152.6,0.00026172,2]
[422168856,1778644236000,-387.03,0.00026166,2]
[422168861,1778644236000,-1302.9,0.00026189,2]
[422168860,1778644236000,-1299.85,0.00026182,2]
[422168850,1778644236000,-7546.72088854,0.0002614,2]
[422168899,1778644236000,-1299.85,0.00026354,7]
[422168840,1778644236000,-150.0,0.00026121,2]
[422168896,1778644236000,-387.03,0.00026345,7]
[422168928,1778644236000,-1299.85,0.00026477,2]
[422168926,1778644236000,-152.6,0.00026474,2]
[422168933,1778644236000,-651.42,0.00026501,7]
[422168931,1778644236000,-386.44,0.00026499,7]
[422168935,1778644236000,-1302.9,0.00026502,7]
[422168930,1778644236000,-387.03,0.00026498,7]
[422168932,1778644236000,-11463.81,0.00026499,7]
[422168936,1778644236000,-152.56,0.00026507,7]
[422168934,1778644236000,-1299.85,0.00026501,7]
[422168940,1778644236000,-651.42,0.00026525,7]
[422168944,1778644236000,-152.56,0.00026541,30]